fUSD/lending_fUSD_20260307
["ID","MTS","AMOUNT","RATE_DAILY","PERIOD"]
[407932904,1772922690492,-151.06834979,0.0004521,120]
[407932905,1772922690501,-151.06834979,0.0004521,120]
[407932906,1772922690510,-151.06834979,0.0004521,120]
[407932907,1772922690520,-151.06834979,0.0004521,120]
[407932908,1772922690529,-151.06834979,0.0004521,120]
[407932909,1772922690538,-151.06834979,0.0004521,120]
[407932910,1772922690547,-151.06834979,0.0004521,120]
[407932911,1772922690559,-151.06834979,0.0004521,120]
[407932912,1772922690568,-151.06834979,0.0004521,120]
[407932913,1772922690578,-151.06834979,0.0004521,120]
[407932914,1772922690589,-151.06834979,0.0004521,120]
[407932915,1772922690600,-151.06834979,0.0004521,120]
[407932916,1772922690609,-151.06834979,0.0004521,120]
[407932917,1772922690618,-151.06834979,0.0004521,120]
[407932918,1772922690627,-151.06834979,0.0004521,120]
[407932919,1772922690636,-151.06834979,0.0004521,120]
[407932920,1772922690647,-151.06834979,0.0004521,120]
[407932921,1772922690656,-151.06,0.0004521,120]
[407932922,1772922690666,-25000.0,0.0004521,120]
[407932923,1772922690677,-166.89309071,0.0004521,120]
[407932924,1772922690688,-166.89309071,0.0004521,120]
[407932925,1772922690698,-166.89309071,0.0004521,120]
[407932926,1772922690709,-166.89309071,0.0004521,120]
[407932927,1772922690719,-166.89309071,0.0004521,120]
[407932928,1772922690728,-166.89309071,0.0004521,120]
[407932929,1772922690738,-166.89309071,0.0004521,120]
[407932930,1772922690747,-166.89309071,0.0004521,120]
[407932931,1772922690756,-166.89309071,0.0004521,120]
[407932932,1772922690765,-166.89309071,0.0004521,120]
[407932933,1772922690778,-166.89309071,0.0004521,120]
[407932934,1772922690788,-166.89309071,0.0004521,120]
[407932935,1772922690798,-166.89309071,0.0004521,120]
[407932936,1772922690807,-166.89309071,0.0004521,120]
[407932937,1772922690816,-166.89309071,0.0004521,120]
[407932938,1772922690826,-166.89309071,0.0004521,120]
[407932939,1772922690835,-166.89309071,0.0004521,120]
[407932940,1772922690845,-166.89309071,0.0004521,120]
[407932941,1772922690854,-166.89309071,0.0004521,120]
[407932942,1772922690865,-166.89,0.0004521,120]
[407932943,1772922690875,-389.41721166,0.0004521,120]
[407932944,1772922690884,-389.41721166,0.0004521,120]
[407932945,1772922690893,-389.41721166,0.0004521,120]
[407932946,1772922690903,-389.41721166,0.0004521,120]
[407932947,1772922690915,-389.41721166,0.0004521,120]
[407932948,1772922690924,-389.41721166,0.0004521,120]
[407932949,1772922690935,-389.41721166,0.0004521,120]
[407932950,1772922690945,-389.41721166,0.0004521,120]
[407932951,1772922690955,-389.41721166,0.0004521,120]
[407932952,1772922690964,-389.41721166,0.0004521,120]
[407932953,1772922690974,-389.41721166,0.0004521,120]
[407932954,1772922690983,-389.41721166,0.0004521,120]
[407932955,1772922690992,-389.41721166,0.0004521,120]
[407932956,1772922691002,-389.41721166,0.0004521,120]
[407932957,1772922691012,-389.41721166,0.0004521,120]
[407932958,1772922691021,-389.41721166,0.0004521,120]
[407932959,1772922691031,-389.41721166,0.0004521,120]
[407932960,1772922691040,-389.41721166,0.0004521,120]
[407932961,1772922691052,-389.41721166,0.0004521,120]
[407932962,1772922691063,-389.41,0.0004521,120]
[407932963,1772922691072,-150.0,0.00045214,30]
[407932964,1772922691082,-150.0,0.00045214,30]
[407932965,1772922691092,-150.0,0.0004522,120]
[407932966,1772922691104,-150.0,0.00045225,30]
[407932967,1772922691114,-154.39,0.00045228,120]
[407932968,1772922691133,-150.0,0.00045233,30]
[407932969,1772922691156,-503.0,0.00045241,28]
[407932970,1772922691177,-237.41052331,0.00045253,30]
[407932971,1772922691195,-178.59741063,0.00045253,30]
[407932972,1772922691205,-159.52490233,0.00045253,30]
[407932973,1772922691216,-196.42941855,0.00045253,30]
[407932974,1772922691227,-496.18312323,0.00045253,30]
[407932975,1772922691238,-259.43061762,0.00045253,30]
[407932976,1772922691249,-150.0,0.00045259,30]
[407932977,1772922691260,-1000.0,0.00045261,120]
[407932978,1772922691273,-152.0,0.00045268,16]
[407932979,1772922691283,-993.49,0.00045274,120]
[407932980,1772922691293,-150.0,0.00045276,30]
[407932981,1772922691302,-7005.86,0.00045279,120]
[407932982,1772922691312,-151.5,0.00045282,120]
[407932983,1772922691321,-150.0,0.00045288,120]
[407932984,1772922691330,-177.08,0.000453,120]
[407932985,1772922691342,-237.41052331,0.00045301,30]
[407932986,1772922691351,-178.59741063,0.00045301,30]
[407932987,1772922691360,-159.52490233,0.00045301,30]
[407932988,1772922691372,-196.42941855,0.00045301,30]
[407932989,1772922691382,-496.18312323,0.00045301,30]
[407932990,1772922691392,-259.43061762,0.00045301,30]
[407932991,1772922691403,-151.46,0.00045302,120]
[407932992,1772922691413,-162.1,0.00045304,120]
[407932993,1772922691422,-1000.0,0.00045315,120]
[407932994,1772922691431,-150.0,0.00045317,30]
[407932995,1772922691440,-150.0,0.00045327,30]
[407932996,1772922691450,-154.39,0.00045328,120]
[407932997,1772922691459,-156.48609943,0.00045331,2]
[407932998,1772922691471,-150.0,0.00045342,30]
[407932999,1772922691481,-150.0,0.00045342,30]
[407933000,1772922691492,-237.41052331,0.00045349,30]
[407933001,1772922691502,-178.59741063,0.00045349,30]
[407933002,1772922691512,-159.52490233,0.00045349,30]
[407933003,1772922691522,-196.42941855,0.00045349,30]
[407933004,1772922691531,-496.18312323,0.00045349,30]
[407933005,1772922691540,-259.43061762,0.00045349,30]
[407933006,1772922691550,-150.0,0.0004535,30]
[407933007,1772922691561,-617.92833284,0.0004537,120]
[407933008,1772922691572,-150.0,0.00045378,30]
[407933009,1772922691582,-151.5,0.00045382,120]
[407933010,1772922691592,-237.41052331,0.00045396,30]
[407933011,1772922691602,-178.59741063,0.00045396,30]
[407933012,1772922691613,-159.52490233,0.00045396,30]
[407933013,1772922691624,-196.42941855,0.00045396,30]
[407933014,1772922691633,-496.18312323,0.00045396,30]
[407933015,1772922691642,-259.43061762,0.00045396,30]
[407933016,1772922691651,-537.37,0.000454,120]
[407933017,1772922691662,-150.0,0.00045401,30]
[407933018,1772922691672,-151.46,0.00045402,120]
[407933019,1772922691681,-162.2,0.00045404,120]
[407933020,1772922691691,-162.39,0.0004542,120]
[407933021,1772922691700,-2669.99591028,0.00045421,120]
[407933022,1772922691709,-154.39,0.00045428,120]
[407933023,1772922691720,-150.0,0.00045429,30]
[407933024,1772922691730,-150.0,0.0004544,30]
[407933025,1772922691741,-237.41052331,0.00045444,30]
[407933026,1772922691750,-178.59741063,0.00045444,30]
[407933027,1772922691760,-159.52490233,0.00045444,30]
[407933028,1772922691769,-196.42941855,0.00045444,30]
[407933029,1772922691779,-496.18312323,0.00045444,30]
[407933030,1772922691788,-259.43061762,0.00045444,30]
[407933031,1772922691798,-442.69,0.00045444,120]
[407933032,1772922691808,-150.0,0.0004547,30]
[407933033,1772922691818,-150.0,0.0004547,30]
[407933034,1772922691828,-1206.0,0.00045479,2]
[407933035,1772922691837,-751.54,0.00045479,120]
[407933036,1772922691847,-500.0,0.00045479,120]
[407933037,1772922691856,-500.0,0.00045479,120]
[407933038,1772922691865,-10716.24,0.00045479,120]
[407933039,1772922691874,-746.0,0.00045479,120]
[407933040,1772922691884,-4253.396233,0.00045479,120]
[407933041,1772922691893,-4253.396233,0.00045479,120]
[407933042,1772922691903,-4253.396233,0.00045479,120]
[407933043,1772922691914,-4253.396233,0.00045479,120]
[407933044,1772922691924,-4253.396233,0.00045479,120]
[407933045,1772922691936,-4253.396233,0.00045479,120]
[407933046,1772922691946,-4253.396233,0.00045479,120]
[407933047,1772922691958,-4253.396233,0.00045479,120]
[407933048,1772922691969,-4253.396233,0.00045479,120]
[407933049,1772922691979,-4253.396233,0.00045479,120]
[407933050,1772922691988,-4253.396233,0.00045479,120]
[407933051,1772922691997,-4253.396233,0.00045479,120]
[407933052,1772922692007,-4253.396233,0.00045479,120]
[407933053,1772922692016,-4253.396233,0.00045479,120]
[407933054,1772922692025,-4253.396233,0.00045479,120]
[407933055,1772922692034,-4253.396233,0.00045479,120]
[407933056,1772922692043,-4253.396233,0.00045479,120]
[407933057,1772922692052,-4253.396233,0.00045479,120]
[407933058,1772922692063,-4253.396233,0.00045479,120]
[407933059,1772922692072,-4253.396232,0.00045479,120]
[407933060,1772922692084,-150.0,0.00045479,30]
[407933061,1772922692094,-151.5,0.00045482,120]
[407933062,1772922692105,-150.0,0.00045486,30]
[407933063,1772922692114,-150.0,0.00045486,30]
[407933064,1772922692124,-237.41052331,0.00045492,30]
[407933065,1772922692134,-178.59741063,0.00045492,30]
[407933066,1772922692143,-159.52490233,0.00045492,30]
[407933067,1772922692153,-196.42941855,0.00045492,30]
[407933068,1772922692163,-496.18312323,0.00045492,30]
[407933069,1772922692173,-259.43061762,0.00045492,30]
[407933070,1772922692183,-1043.0,0.00045494,120]
[407933071,1772922692193,-1000.0,0.000455,120]
[407933072,1772922692202,-2500.0,0.000455,120]
[407933073,1772922692215,-573.0,0.000455,120]
[407933074,1772922692227,-500.0,0.000455,120]
[407933075,1772922692237,-151.46,0.00045502,120]
[407933076,1772922692247,-154.39,0.00045528,120]
[407933077,1772922692259,-150.0,0.0004553,30]
[407933078,1772922692273,-150.0,0.00045531,120]
[407933079,1772922692283,-150.0,0.00045531,30]
[407933080,1772922692293,-237.41052331,0.0004554,30]
[407933081,1772922692302,-178.59741063,0.0004554,30]
[407933082,1772922692313,-159.52490233,0.0004554,30]
[407933083,1772922692323,-196.42941855,0.0004554,30]
[407933084,1772922692333,-150.0,0.0004554,30]
[407933085,1772922692344,-496.18312323,0.0004554,30]
[407933086,1772922692355,-259.43061762,0.0004554,30]
[407933087,1772922692365,-993.49,0.00045548,120]
[407933088,1772922692374,-3188.48,0.00045556,120]
[407933089,1772922692384,-150.0,0.0004557,30]
[407933090,1772922692394,-150.0,0.00045581,30]
[407933091,1772922692403,-151.5,0.00045582,120]
[407933092,1772922692413,-237.41052331,0.00045587,30]
[407933093,1772922692423,-178.59741063,0.00045587,30]
[407933094,1772922692433,-159.52490233,0.00045587,30]
[407933095,1772922692443,-196.42941855,0.00045587,30]
[407933096,1772922692452,-496.18312323,0.00045587,30]
[407933097,1772922692463,-259.43061762,0.00045587,30]
[407933098,1772922692473,-3734.61,0.00045597,120]
[407933099,1772922692482,-150.0,0.00045598,30]
[407933100,1772922692621,-150.0,0.00045598,30]
[407933101,1772922692633,-10000.0,0.000456,30]
[407933102,1772922692642,-481.12,0.000456,120]
[407933103,1772922692653,-229.01,0.000456,120]
[407933104,1772922692662,-151.46,0.00045602,120]
[407933105,1772922692672,-150.0,0.00045604,120]
[407933106,1772922692681,-156.48609943,0.00045605,2]
[407933107,1772922692691,-150.0,0.00045622,30]
[407933108,1772922692700,-154.39,0.00045628,120]
[407933109,1772922692710,-150.0,0.00045632,30]
[407933110,1772922692720,-237.41052331,0.00045635,30]
[407933111,1772922692730,-178.59741063,0.00045635,30]
[407933112,1772922692740,-159.52490233,0.00045635,30]
[407933113,1772922692750,-196.42941855,0.00045635,30]
[407933114,1772922692759,-496.18312323,0.00045635,30]
[407933115,1772922692769,-259.43061762,0.00045635,30]
[407933116,1772922692778,-150.0,0.00045655,30]
[407933117,1772922692788,-2692.29983561,0.00045668,2]
[407933118,1772922692798,-151.54,0.00045682,120]
[407933119,1772922692808,-150.0,0.00045683,30]
[407933120,1772922692818,-150.0,0.00045683,30]
[407933121,1772922692828,-150.0,0.00045683,30]
[407933122,1772922692837,-237.41052331,0.00045683,30]
[407933123,1772922692847,-178.59741063,0.00045683,30]
[407933124,1772922692857,-159.52490233,0.00045683,30]
[407933125,1772922692867,-196.42941855,0.00045683,30]
[407933126,1772922692876,-496.18312323,0.00045683,30]
[407933127,1772922692887,-259.43061762,0.00045683,30]
[407933128,1772922692897,-150.0,0.00045683,120]
[407933129,1772922692906,-289.50762577,0.000457,120]
[407933130,1772922692916,-151.46,0.00045702,120]
[407933131,1772922692925,-150.0,0.00045713,30]
[407933132,1772922692935,-150.0,0.00045725,30]
[407933133,1772922692948,-150.0,0.00045725,30]
[407933134,1772922692958,-154.39,0.00045728,120]
[407933135,1772922692968,-237.41052331,0.0004573,30]
[407933136,1772922692977,-178.59741063,0.0004573,30]
[407933137,1772922692986,-159.52490233,0.0004573,30]
[407933138,1772922692996,-196.42941855,0.0004573,30]
[407933139,1772922693005,-496.18312323,0.0004573,30]
[407933140,1772922693015,-259.43061762,0.0004573,30]
[407933141,1772922693024,-150.0,0.00045734,30]
[407933142,1772922693034,-150.0,0.00045739,30]
[407933143,1772922693043,-1206.0,0.00045753,2]
[407933144,1772922693052,-751.54,0.00045753,120]
[407933145,1772922693061,-500.0,0.00045753,120]
[407933146,1772922693070,-442.69,0.00045756,120]
[407933147,1772922693079,-200.12,0.00045761,13]
[407933148,1772922693089,-200.13,0.00045761,13]
[407933149,1772922693098,-171.49,0.00045761,13]
[407933150,1772922693107,-171.49,0.00045761,13]
[407933151,1772922693116,-171.5,0.00045761,13]
[407933152,1772922693125,-237.41052331,0.00045778,30]
[407933153,1772922693135,-178.59741063,0.00045778,30]
[407933154,1772922693148,-159.52490233,0.00045778,30]
[407933155,1772922693157,-196.42941855,0.00045778,30]
[407933156,1772922693167,-496.18312323,0.00045778,30]
[407933157,1772922693176,-259.43061762,0.00045778,30]
[407933158,1772922693186,-150.0,0.00045781,30]
[407933159,1772922693196,-150.0,0.00045784,30]
[407933160,1772922693205,-2724.7086699,0.000458,120]
[407933161,1772922693214,-152.0,0.000458,120]
[407933162,1772922693223,-154.0,0.000458,120]
[407933163,1772922693232,-151.46,0.00045802,120]
[407933164,1772922693241,-150.0,0.00045804,30]
[407933165,1772922693251,-993.49,0.00045822,120]
[407933166,1772922693260,-150.0,0.00045823,30]
[407933167,1772922693274,-237.41052331,0.00045826,30]
[407933168,1772922693283,-178.59741063,0.00045826,30]
[407933169,1772922693292,-159.52490233,0.00045826,30]
[407933170,1772922693302,-196.42941855,0.00045826,30]
[407933171,1772922693314,-496.18312323,0.00045826,30]
[407933172,1772922693324,-259.43061762,0.00045826,30]
[407933173,1772922693334,-154.39,0.00045828,120]
[407933174,1772922693343,-150.0,0.00045835,30]
[407933175,1772922693352,-1241.0,0.0004584,120]
[407933176,1772922693361,-150.0,0.00045853,30]
[407933177,1772922693371,-150.0,0.00045853,30]
[407933178,1772922693380,-237.41052331,0.00045874,30]
[407933179,1772922693389,-178.59741063,0.00045874,30]
[407933180,1772922693400,-159.52490233,0.00045874,30]
[407933181,1772922693410,-196.42941855,0.00045874,30]
[407933182,1772922693420,-496.18312323,0.00045874,30]
[407933183,1772922693429,-259.43061762,0.00045874,30]
[407933184,1772922693438,-156.48609943,0.00045879,2]
[407933185,1772922693448,-394.78704153,0.0004588,120]
[407933186,1772922693457,-150.0,0.00045886,30]
[407933187,1772922693466,-500.0,0.0004589,120]
[407933188,1772922693475,-150.0,0.00045895,30]
[407933189,1772922693484,-2000.0,0.000459,2]
[407933190,1772922693493,-151.46,0.00045902,120]
[407933191,1772922693502,-150.0,0.00045908,30]
[407933192,1772922693511,-237.41052331,0.00045921,30]
[407933193,1772922693521,-178.59741063,0.00045921,30]
[407933194,1772922693530,-159.52490233,0.00045921,30]
[407933195,1772922693542,-196.42941855,0.00045921,30]
[407933196,1772922693552,-496.18312323,0.00045921,30]
[407933197,1772922693562,-259.43061762,0.00045921,30]
[407933198,1772922693572,-154.39,0.00045928,120]
[407933199,1772922693583,-150.0,0.00045937,30]
[407933200,1772922693593,-150.0,0.00045969,120]
[407933201,1772922693604,-237.41052331,0.00045969,30]
[407933202,1772922693614,-178.59741063,0.00045969,30]
[407933203,1772922693625,-159.52490233,0.00045969,30]
[407933204,1772922693636,-196.42941855,0.00045969,30]
[407933205,1772922693645,-150.0,0.00045969,30]
[407933206,1772922693655,-496.18312323,0.00045969,30]
[407933207,1772922693666,-259.43061762,0.00045969,30]
[407933208,1772922693675,-150.0,0.00045981,30]
[407933209,1772922693685,-150.0,0.00045981,30]
[407933210,1772922693694,-150.0,0.00045986,30]
[407933211,1772922693704,-150.0,0.00045988,30]
[407933212,1772922693714,-150.0,0.00045992,30]
[407933213,1772922693723,-1073.0853127,0.00045999,120]
[407933214,1772922693732,-306.77047522,0.00046,2]
[407933215,1772922693742,-2441.37,0.00046,120]
[407933216,1772922693751,-248.47,0.00046,120]
[407933217,1772922693760,-450.03529829,0.00046,120]
[407933218,1772922693770,-1000.0,0.00046,30]
[407933219,1772922693780,-206.37834406,0.00046,30]
[407933220,1772922693790,-517.93966521,0.00046,120]
[407933221,1772922693800,-353.79961881,0.00046,120]
[407933222,1772922693810,-4022.25852486,0.00046,120]
[407933223,1772922693819,-338.31191375,0.00046,120]
[407933224,1772922693829,-5130.44951274,0.00046,90]
[407933225,1772922693838,-500.0,0.00046,120]
[407933226,1772922693847,-7312.99376903,0.00046,120]
[407933227,1772922693857,-753.8048717,0.00046,120]
[407933228,1772922693866,-1000.0,0.00046,120]
[407933229,1772922693875,-2500.0,0.00046,120]
[407933230,1772922693885,-1000.59,0.00046,120]
[407933231,1772922693895,-4203.77020183,0.00046,120]
[407933232,1772922693907,-1399.95886972,0.00046,120]
[407933233,1772922693918,-300.0,0.00046,30]
[407933234,1772922693932,-1324.7976711,0.00046,30]
[407933235,1772922693942,-137099.39,0.00046,120]
[407933236,1772922693952,-1652.0,0.00046,30]
[407933237,1772922693961,-539.33,0.00046,120]
[407933238,1772922693970,-540.91,0.00046,120]
[407933239,1772922693979,-573.0,0.00046,120]
[407933240,1772922693989,-30000.0,0.00046,2]
[407933241,1772922693999,-5536.96245101,0.00046,3]
[407933242,1772922694008,-48895.73333566,0.00046,5]
[407933243,1772922694022,-500.0,0.00046,120]
[407933244,1772922694032,-151.46,0.00046002,120]
[407933245,1772922694042,-150.0,0.00046016,120]
[407933246,1772922694052,-237.41052331,0.00046017,30]
[407933247,1772922694061,-178.59741063,0.00046017,30]
[407933248,1772922694071,-159.52490233,0.00046017,30]
[407933249,1772922694081,-196.42941855,0.00046017,30]
[407933250,1772922694091,-496.18312323,0.00046017,30]
[407933251,1772922694101,-259.43061762,0.00046017,30]
[407933252,1772922694111,-1206.0,0.00046027,2]
[407933253,1772922694121,-751.54,0.00046027,120]
[407933254,1772922694133,-500.0,0.00046027,120]
[407933255,1772922694143,-1020.06,0.00046027,120]
[407933256,1772922694153,-500.0,0.00046027,120]
[407933257,1772922694162,-500.0,0.00046027,120]
[407933258,1772922694172,-500.0,0.00046027,120]
[407933259,1772922694182,-500.0,0.00046027,120]
[407933260,1772922694191,-273.23050833,0.00046027,120]
[407933261,1772922694203,-500.0,0.00046027,120]
[407933262,1772922694214,-10716.24,0.00046027,120]
[407933263,1772922694224,-526.39,0.00046027,120]
[407933264,1772922694234,-154.39,0.00046028,120]
[407933265,1772922694244,-150.0,0.00046038,30]
[407933266,1772922694254,-1000.0,0.00046053,120]
[407933267,1772922694264,-237.41052331,0.00046065,30]
[407933268,1772922694275,-178.59741063,0.00046065,30]
[407933269,1772922694285,-159.52490233,0.00046065,30]
[407933270,1772922694298,-196.42941855,0.00046065,30]
[407933271,1772922694310,-496.18312323,0.00046065,30]
[407933272,1772922694320,-259.43061762,0.00046065,30]
[407933273,1772922694329,-442.69,0.00046067,120]
[407933274,1772922694341,-150.0,0.00046077,30]
[407933275,1772922694351,-150.0,0.00046077,30]
[407933276,1772922694360,-150.0,0.00046077,30]
[407933277,1772922694370,-150.0,0.00046077,30]
[407933278,1772922694380,-150.0,0.00046089,30]
[407933279,1772922694390,-993.49,0.00046096,120]
[407933280,1772922694400,-462.44,0.000461,120]
[407933281,1772922694410,-151.46,0.00046102,120]
[407933282,1772922694419,-150.0,0.00046108,30]
[407933283,1772922694429,-150.0,0.00046108,30]
[407933284,1772922694439,-237.41052331,0.00046112,30]
[407933285,1772922694449,-178.59741063,0.00046112,30]
[407933286,1772922694459,-159.52490233,0.00046112,30]
[407933287,1772922694468,-196.42941855,0.00046112,30]
[407933288,1772922694478,-496.18312323,0.00046112,30]
[407933289,1772922694488,-259.43061762,0.00046112,30]
[407933290,1772922694499,-154.39,0.00046128,120]
[407933291,1772922694510,-150.0,0.0004614,30]
[407933292,1772922694519,-151.0,0.00046143,10]
[407933293,1772922694529,-151.0,0.00046143,10]
[407933294,1772922694539,-151.0,0.00046143,10]
[407933295,1772922694550,-151.0,0.00046143,10]
[407933296,1772922694561,-151.0,0.00046143,10]
[407933297,1772922694572,-151.0,0.00046143,10]
[407933298,1772922694582,-151.0,0.00046143,10]
[407933299,1772922694593,-151.0,0.00046143,10]
[407933300,1772922694603,-151.0,0.00046143,10]
[407933301,1772922694614,-151.0,0.00046143,10]
[407933302,1772922694625,-151.0,0.00046143,10]
[407933303,1772922694636,-151.0,0.00046143,10]
[407933304,1772922694645,-151.0,0.00046143,10]
[407933305,1772922694655,-151.0,0.00046143,10]
[407933306,1772922694665,-151.0,0.00046143,10]
[407933307,1772922694677,-151.0,0.00046143,10]
[407933308,1772922694688,-151.0,0.00046143,10]
[407933309,1772922694699,-151.0,0.00046143,10]
[407933310,1772922694710,-151.0,0.00046143,10]
[407933311,1772922694721,-151.0,0.00046143,10]
[407933312,1772922694731,-151.0,0.00046143,10]
[407933313,1772922694740,-151.0,0.00046143,10]
[407933314,1772922694750,-151.0,0.00046143,10]
[407933315,1772922694760,-151.0,0.00046143,10]
[407933316,1772922694770,-151.0,0.00046143,10]
[407933317,1772922694780,-151.0,0.00046143,10]
[407933318,1772922694790,-151.0,0.00046143,10]
[407933319,1772922694800,-151.0,0.00046143,10]
[407933320,1772922694810,-151.0,0.00046143,10]
[407933321,1772922694820,-151.0,0.00046143,10]
[407933322,1772922694830,-151.0,0.00046143,10]
[407933323,1772922694839,-151.0,0.00046143,10]
[407933324,1772922694850,-151.0,0.00046143,10]
[407933325,1772922694860,-151.0,0.00046143,10]
[407933326,1772922694870,-151.0,0.00046143,10]
[407933327,1772922694880,-151.0,0.00046143,10]
[407933328,1772922694890,-151.0,0.00046143,10]
[407933329,1772922694900,-151.0,0.00046143,10]
[407933330,1772922694910,-151.0,0.00046143,10]
[407933331,1772922694920,-151.0,0.00046143,10]
[407933332,1772922694930,-151.0,0.00046143,10]
[407933333,1772922694940,-151.0,0.00046143,10]
[407933334,1772922694950,-151.0,0.00046143,10]
[407933335,1772922694960,-151.0,0.00046143,10]
[407933336,1772922694970,-151.0,0.00046143,10]
[407933337,1772922694980,-151.0,0.00046143,10]
[407933338,1772922694990,-151.0,0.00046143,10]
[407933339,1772922694999,-151.0,0.00046143,10]
[407933340,1772922695009,-151.0,0.00046143,10]
[407933341,1772922695020,-151.0,0.00046143,10]
[407933342,1772922695030,-151.0,0.00046143,10]
[407933343,1772922695040,-151.0,0.00046143,10]
[407933344,1772922695050,-151.0,0.00046143,10]
[407933345,1772922695060,-151.0,0.00046143,10]
[407933346,1772922695071,-151.0,0.00046143,10]
[407933347,1772922695081,-212.0,0.00046143,10]
[407933348,1772922695092,-150.0,0.00046143,10]
[407933349,1772922695102,-150.0,0.00046143,10]
[407933350,1772922695113,-150.0,0.00046143,10]
[407933351,1772922695123,-150.0,0.00046143,10]
[407933352,1772922695133,-150.0,0.00046143,10]
[407933353,1772922695144,-150.0,0.00046143,10]
[407933354,1772922695155,-150.0,0.00046143,10]
[407933355,1772922695164,-150.0,0.00046143,10]
[407933356,1772922695175,-150.0,0.00046143,10]
[407933357,1772922695184,-150.0,0.00046143,10]
[407933358,1772922695195,-150.0,0.00046143,10]
[407933359,1772922695207,-150.0,0.00046143,10]
[407933360,1772922695218,-150.0,0.00046143,10]
[407933361,1772922695228,-150.0,0.00046143,10]
[407933362,1772922695238,-150.0,0.00046143,10]
[407933363,1772922695249,-150.0,0.00046143,10]
[407933364,1772922695259,-150.0,0.00046143,10]
[407933365,1772922695276,-150.0,0.00046143,10]
[407933366,1772922695287,-150.0,0.00046143,10]
[407933367,1772922695297,-150.0,0.00046143,10]
[407933368,1772922695307,-273.0,0.00046143,10]
[407933369,1772922695318,-156.48609943,0.00046153,2]
[407933370,1772922695327,-150.0,0.0004616,120]
[407933371,1772922695338,-237.41052331,0.0004616,30]
[407933372,1772922695349,-178.59741063,0.0004616,30]
[407933373,1772922695360,-159.52490233,0.0004616,30]
[407933374,1772922695370,-196.42941855,0.0004616,30]
[407933375,1772922695381,-496.18312323,0.0004616,30]
[407933376,1772922695393,-259.43061762,0.0004616,30]
[407933377,1772922695404,-150.0,0.00046161,30]
[407933378,1772922695414,-217.54204116,0.00046165,120]
[407933379,1772922695425,-150.0,0.00046167,30]
[407933380,1772922695436,-150.0,0.00046191,30]
[407933381,1772922695447,-5432.69,0.000462,120]
[407933382,1772922695458,-151.46,0.00046202,120]
[407933383,1772922695468,-1000.0,0.00046203,120]
[407933384,1772922695478,-237.41052331,0.00046208,30]
[407933385,1772922695489,-178.59741063,0.00046208,30]
[407933386,1772922695499,-159.52490233,0.00046208,30]
[407933387,1772922695509,-196.42941855,0.00046208,30]
[407933388,1772922695520,-496.18312323,0.00046208,30]
[407933389,1772922695530,-259.43061762,0.00046208,30]
[407933390,1772922695542,-150.0,0.00046208,30]
[407933391,1772922695552,-25000.0,0.0004621,120]
[407933392,1772922695562,-2905.80995164,0.0004621,30]
[407933393,1772922695572,-154.39,0.00046228,120]
[407933394,1772922695583,-150.0,0.00046236,30]
[407933395,1772922695593,-150.0,0.00046236,30]
[407933396,1772922695603,-150.0,0.00046242,30]
[407933397,1772922695612,-150.0,0.00046245,30]
[407933398,1772922695621,-237.41052331,0.00046256,30]
[407933399,1772922695631,-178.59741063,0.00046256,30]
[407933400,1772922695641,-159.52490233,0.00046256,30]
[407933401,1772922695651,-196.42941855,0.00046256,30]
[407933402,1772922695661,-496.18312323,0.00046256,30]
[407933403,1772922695671,-259.43061762,0.00046256,30]